[Event "Biel Master Tournament 2019"]
[Site "Biel"]
[Date "2019.07.23"]
[Round "2.7"]
[White "Mittal, Aditya"]
[Black "Donchenko, Alexander"]
[Result "0-1"]
[ECO "E01"]
[WhiteElo "2429"]
[BlackElo "2615"]
[Annotator "ChessBase"]
[PlyCount "78"]
[EventDate "2019.07.20"]
[EventType "swiss"]
[EventCountry "SUI"]
[SourceTitle "playchess.com"]
[Source "ChessBase"]
[SourceQuality "1"]
[TimeControl "40/5400+30:1800+30"]

1. d4 {[%emt 0:00:00]} d5 {[%emt 0:00:00]} 2. c4 {[%emt 0:00:00]} e6 {[%emt 0:00:00]} 3. Nc3 {[%emt 0:00:02]} c6 {[%emt 0:00:00]} 4. Nf3 {[%emt 0:00:11]} Nf6 {[%emt 0:00:07]} 5. g3 {[%emt 0:00:38]} dxc4 {[%emt 0:00:26]} 6. Bg2 {[%emt 0:00:08]} Nbd7 {[%emt 0:03:36]} 7. O-O {[%emt 0:00:16]} b5 {[%emt 0:00:37]} 8. e4 {[%emt 0:01:34]} Bb7 {[%emt 0:00:13]} 9. e5 {[%emt 0:01:02]} Nd5 {[%emt 0:00:07]} 10. Ng5 {[%emt 0:00:28]} h6 {[%emt 0:00:19]} 11. Nxe6 {[%emt 0:00:40]} fxe6 {[%emt 0:00:07]} 12. Qh5+ {[%emt 0:00:08]} Ke7 {[%emt 0:00:04]} 13. Ne4 {[%emt 0:01:31]} Qe8 {[%emt 0:00:13]} 14. Bg5+ {[%emt 0:00:26]} hxg5 {[%emt 0:00:08]} 15. Qxh8 {[%emt 0:00:03]} Kd8 {[%emt 0:00:15]} 16. Nxg5 {[%emt 0:01:56]} Qe7 {[%emt 0:00:21]} 17. Qh5 {[%emt 0:10:44]} N7b6 {[%emt 0:13:12]} 18. Qg6 {[%emt 0:06:26]} Bc8 {[%emt 0:05:35]} 19. Bh3 {[%emt 0:03:26]} Qe8 {[%emt 0:03:11]} 20. Qxe8+ {[%emt 0:19:48]} Kxe8 {[%emt 0:01:53]} 21. Bxe6 {[%emt 0:00:08]} Be7 {[%emt 0:05:14]} 22. Bxc8 {[%emt 0:03:08]} Rxc8 {[%emt 0:00:38]} 23. Ne4 {[%emt 0:00:25]} Rd8 {[%emt 0:03:54]} 24. Rfe1 {[%emt 0:07:27]} Nb4 {[%emt 0:07:44]} 25. Nd6+ {[%emt 0:03:21]} Kf8 {[%emt 0:00:51]} 26. Re4 {[%emt 0:03:42]} Bxd6 {[%emt 0:00:49]} 27. exd6 {[%emt 0:00:02]} Nd3 {[%emt 0:07:57]} 28. Re7 {[%emt 0:07:52]} a5 {[%emt 0:04:36]} 29. Ra7 {[%emt 0:06:01]} Rxd6 {[%emt 0:01:28]} 30. Rxa5 {[%emt 0:00:16]} Nxb2 {[%emt 0:00:26]} 31. Re1 {[%emt 0:04:58]} Rxd4 {[%emt 0:03:20]} 32. Re3 {[%emt 0:07:47]} Rd3 {[%emt 0:01:39]} 33. Re2 {[%emt 0:04:53]} c3 {[%emt 0:00:42]} 34. Ra3 {[%emt 0:02:40]} c2 {[%emt 0:01:27]} 35. Rxc2 {[%emt 0:00:29]} Rxa3 {[%emt 0:00:06]} 36. Rxc6 {[%emt 0:00:25]} Nd7 {[%emt 0:01:51]} 37. Rc7 {[%emt 0:00:17]} Ke7 {[%emt 0:00:10]} 38. Rb7 {[%emt 0:00:12]} Ra5 {[%emt 0:00:08]} 39. h4 {[%emt 0:00:21]} Kd6 {[%emt 0:00:05]} 0-1

[Event "Biel Master Tournament 2019"]
[Site "Biel"]
[Date "2019.07.23"]
[Round "2.9"]
[White "Erdos, Viktor"]
[Black "Low, Zhen Yu Cyrus"]
[Result "1-0"]
[ECO "D30"]
[WhiteElo "2603"]
[BlackElo "2155"]
[Annotator "ChessBase"]
[PlyCount "87"]
[EventDate "2019.07.20"]
[EventType "swiss"]
[EventCountry "SUI"]
[SourceTitle "playchess.com"]
[Source "ChessBase"]
[SourceQuality "1"]
[TimeControl "40/5400+30:1800+30"]

1. Nf3 {[%emt 0:01:25]} Nf6 {[%emt 0:00:00]} 2. c4 {[%emt 0:00:05]} e6 {[%emt 0:00:00]} 3. d4 {[%emt 0:01:14]} d5 {[%emt 0:00:00]} 4. Bg5 {[%emt 0:00:54]} h6 {[%emt 0:00:00]} 5. Bxf6 {[%emt 0:00:06]} Qxf6 {[%emt 0:00:05]} 6. e3 {[%emt 0:00:28]} g6 {[%emt 0:00:58]} 7. Qb3 {[%emt 0:01:22]} c6 {[%emt 0:01:41]} 8. Nbd2 {[%emt 0:02:27]} Nd7 {[%emt 0:03:53]} 9. Bd3 {[%emt 0:00:30]} Bg7 {[%emt 0:00:20]} 10. O-O {[%emt 0:00:20]} O-O {[%emt 0:00:18]} 11. Rac1 {[%emt 0:00:24]} b6 {[%emt 0:13:36]} 12. cxd5 {[%emt 0:11:32]} exd5 {[%emt 0:00:14]} 13. Qa4 {[%emt 0:00:21]} c5 {[%emt 0:07:10]} 14. Ba6 {[%emt 0:31:14]} Qe6 {[%emt 0:15:46]} 15. Rc2 {[%emt 0:02:40]} Bxa6 {[%emt 0:11:56]} 16. Qxa6 {[%emt 0:00:22]} cxd4 {[%emt 0:00:05]} 17. exd4 {[%emt 0:00:35]} Nf6 {[%emt 0:00:06]} 18. Rc7 {[%emt 0:11:43]} Ne4 {[%emt 0:02:30]} 19. Nb3 {[%emt 0:00:06]} Rfc8 {[%emt 0:18:56]} 20. Rfc1 {[%emt 0:01:53]} Nd6 {[%emt 0:01:07]} 21. Rxc8+ {[%emt 0:07:46]} Rxc8 {[%emt 0:00:25]} 22. Rxc8+ {[%emt 0:01:43]} Qxc8 {[%emt 0:00:22]} 23. Qxc8+ {[%emt 0:01:35]} Nxc8 {[%emt 0:00:01]} 24. Na1 {[%emt 0:00:13]} Kf8 {[%emt 0:01:12]} 25. Nc2 {[%emt 0:00:39]} Ke7 {[%emt 0:00:07]} 26. Kf1 {[%emt 0:00:17]} Kd6 {[%emt 0:01:19]} 27. Ke2 {[%emt 0:00:10]} Ne7 {[%emt 0:00:07]} 28. Na3 {[%emt 0:02:41]} a6 {[%emt 0:01:13]} 29. Nc2 {[%emt 0:00:09]} Nc6 {[%emt 0:00:06]} 30. Ke3 {[%emt 0:01:26]} Ke6 {[%emt 0:00:43]} 31. h3 {[%emt 0:00:25]} Bf6 {[%emt 0:00:45]} 32. Kd3 {[%emt 0:01:46]} Kd6 {[%emt 0:00:29]} 33. Ng1 {[%emt 0:00:36]} Bg7 {[%emt 0:01:20]} 34. f4 {[%emt 0:02:37]} Ke6 {[%emt 0:05:06]} 35. Nf3 {[%emt 0:03:09]} Ne7 {[%emt 0:00:17]} 36. Ne3 {[%emt 0:05:39]} Nc8 {[%emt 0:02:54]} 37. g4 {[%emt 0:01:20]} Nd6 {[%emt 0:00:19]} 38. Nh4 {[%emt 0:02:29]} Ne4 {[%emt 0:06:18]} 39. f5+ {[%emt 0:00:04]} gxf5 {[%emt 0:00:05]} 40. Nhxf5 {[%emt 0:00:54]} Bf6 {[%emt 0:02:24]} 41. Nxd5 {[%emt 0:11:22]} Nf2+ {[%emt 0:04:16]} 42. Kc4 {[%emt 0:00:14]} b5+ {[%emt 0:01:22]} 43. Kc5 {[%emt 0:00:04]} Bd8 {[%emt 0:00:14]} 44. Kc6 {[%emt 0:04:29] Kxd5+} 1-0

[Event "Biel Master Tournament 2019"]
[Site "Biel"]
[Date "2019.07.23"]
[Round "2.10"]
[White "Meins, Gerlef"]
[Black "Tabatabaei, M.amin"]
[Result "0-1"]
[ECO "E97"]
[WhiteElo "2417"]
[BlackElo "2601"]
[Annotator "ChessBase"]
[PlyCount "68"]
[EventDate "2019.07.20"]
[EventType "swiss"]
[EventCountry "SUI"]
[SourceTitle "playchess.com"]
[Source "ChessBase"]
[SourceQuality "1"]
[TimeControl "40/5400+30:1800+30"]

1. d4 {[%emt 0:00:00]} Nf6 {[%emt 0:01:29]} 2. Nf3 {[%emt 0:00:25]} g6 {[%emt 0:00:36]} 3. c4 {[%emt 0:00:57]} Bg7 {[%emt 0:00:07]} 4. Nc3 {[%emt 0:00:13]} O-O {[%emt 0:00:20]} 5. e4 {[%emt 0:01:01]} d6 {[%emt 0:00:08]} 6. Be2 {[%emt 0:01:11]} e5 {[%emt 0:00:13]} 7. O-O {[%emt 0:03:52]} Nc6 {[%emt 0:00:16]} 8. d5 {[%emt 0:01:33]} Ne7 {[%emt 0:00:08]} 9. b4 {[%emt 0:01:40]} a5 {[%emt 0:00:12]} 10. Ba3 {[%emt 0:01:26]} axb4 {[%emt 0:00:29]} 11. Bxb4 {[%emt 0:00:06]} b6 {[%emt 0:00:06]} 12. a4 {[%emt 0:04:34]} Nh5 {[%emt 0:00:17]} 13. g3 {[%emt 0:05:06]} Bh6 {[%emt 0:13:49]} 14. a5 {[%emt 0:07:31]} bxa5 {[%emt 0:00:37]} 15. Rxa5 {[%emt 0:02:15]} Bh3 {[%emt 0:01:13]} 16. Re1 {[%emt 0:03:06]} c5 {[%emt 0:00:33]} 17. Rxa8 {[%emt 0:03:24]} Qxa8 {[%emt 0:00:16]} 18. Bxc5 {[%emt 0:00:10]} dxc5 {[%emt 0:00:29]} 19. Nxe5 {[%emt 0:03:36]} Nf6 {[%emt 0:16:43]} 20. Nd3 {[%emt 0:11:43]} Qa5 {[%emt 0:05:01]} 21. Qa1 {[%emt 0:11:27]} Qxa1 {[%emt 0:15:53]} 22. Rxa1 {[%emt 0:00:03]} Bd2 {[%emt 0:00:09]} 23. Nb1 {[%emt 0:07:49]} Nxe4 {[%emt 0:00:37]} 24. Bf3 {[%emt 0:00:15]} Bc3 {[%emt 0:16:16]} 25. Nxc3 {[%emt 0:15:16]} Nxc3 {[%emt 0:00:13]} 26. Nxc5 {[%emt 0:00:07]} Nf5 {[%emt 0:00:06]} 27. Ne4 {[%emt 0:07:25]} Nd4 {[%emt 0:01:15]} 28. Bg4 {[%emt 0:00:54]} Nde2+ {[%emt 0:10:47]} 29. Bxe2 {[%emt 0:01:27]} Nxe2+ {[%emt 0:00:02]} 30. Kh1 {[%emt 0:00:07]} Rc8 {[%emt 0:00:19]} 31. d6 {[%emt 0:04:46]} Bf5 {[%emt 0:02:53]} 32. f3 {[%emt 0:01:36]} Nd4 {[%emt 0:01:01]} 33. g4 {[%emt 0:00:00]} Bxe4 {[%emt 0:01:11]} 34. fxe4 {[%emt 0:00:01]} Ne6 0-1

[Event "Biel Master Tournament 2019"]
[Site "Biel"]
[Date "2019.07.23"]
[Round "2.13"]
[White "Rahul Srivatshav P"]
[Black "Vaibhav, Suri"]
[Result "1/2-1/2"]
[ECO "E94"]
[WhiteElo "2414"]
[BlackElo "2591"]
[Annotator "ChessBase"]
[PlyCount "86"]
[EventDate "2019.07.20"]
[EventType "swiss"]
[EventCountry "SUI"]
[SourceTitle "playchess.com"]
[Source "ChessBase"]
[SourceQuality "1"]
[TimeControl "40/5400+30:1800+30"]

1. c4 {[%emt 0:00:21]} e5 {[%emt 0:00:00]} 2. Nc3 {[%emt 0:00:23]} Nf6 {[%emt 0:00:04]} 3. Nf3 {[%emt 0:00:06]} Nc6 {[%emt 0:00:06]} 4. e4 {[%emt 0:00:03]} g6 {[%emt 0:07:33]} 5. d4 {[%emt 0:11:34]} exd4 {[%emt 0:00:23]} 6. Nxd4 {[%emt 0:00:14]} Bg7 {[%emt 0:00:05]} 7. Nc2 {[%emt 0:05:26]} O-O {[%emt 0:02:46]} 8. Be2 {[%emt 0:01:15]} Re8 {[%emt 0:06:12]} 9. f3 {[%emt 0:00:20]} d6 {[%emt 0:07:12]} 10. O-O {[%emt 0:03:19]} Nh5 {[%emt 0:01:41]} 11. g4 {[%emt 0:08:01]} Nf6 {[%emt 0:09:48]} 12. Bf4 {[%emt 0:05:07]} h5 {[%emt 0:08:48]} 13. h3 {[%emt 0:02:18]} Nh7 {[%emt 0:04:17]} 14. Qd2 {[%emt 0:04:19]} hxg4 {[%emt 0:05:30]} 15. hxg4 {[%emt 0:00:09]} g5 {[%emt 0:02:01]} 16. Be3 {[%emt 0:03:20]} Ne5 {[%emt 0:00:58]} 17. Kg2 {[%emt 0:10:18]} Be6 {[%emt 0:01:18]} 18. b3 {[%emt 0:06:33]} Ng6 {[%emt 0:00:39]} 19. Nb4 {[%emt 0:07:06]} c6 {[%emt 0:07:38]} 20. Nd3 {[%emt 0:04:02]} d5 {[%emt 0:05:36]} 21. cxd5 {[%emt 0:05:12]} cxd5 {[%emt 0:00:06]} 22. exd5 {[%emt 0:00:11]} Bxg4 {[%emt 0:00:56]} 23. Nc5 {[%emt 0:03:09]} Bxc3 {[%emt 0:18:51]} 24. Qxc3 {[%emt 0:00:07]} Nf4+ {[%emt 0:03:10]} 25. Bxf4 {[%emt 0:00:09]} Rxe2+ {[%emt 0:00:02]} 26. Rf2 {[%emt 0:00:19]} Bh3+ {[%emt 0:00:19]} 27. Kg1 {[%emt 0:00:27]} Rxf2 {[%emt 0:00:34]} 28. Kxf2 {[%emt 0:00:08]} gxf4 {[%emt 0:01:38]} 29. Rg1+ {[%emt 0:03:01]} Ng5 {[%emt 0:00:01]} 30. d6 {[%emt 0:06:54]} f6 {[%emt 0:02:28]} 31. Qc4+ {[%emt 0:01:49]} Kg7 {[%emt 0:01:57]} 32. Qxf4 {[%emt 0:00:05]} Rc8 {[%emt 0:01:09]} 33. Qd4 {[%emt 0:00:22]} Kf7 {[%emt 0:01:34]} 34. Qd5+ {[%emt 0:01:47]} Kf8 {[%emt 0:00:08]} 35. d7 {[%emt 0:01:10]} Rc7 {[%emt 0:00:37]} 36. Qd6+ {[%emt 0:03:06]} Kf7 {[%emt 0:00:01]} 37. Qd5+ {[%emt 0:01:04]} Kf8 {[%emt 0:00:00]} 38. Qd6+ {[%emt 0:00:08]} Kf7 {[%emt 0:00:00]} 39. Qd5+ {[%emt 0:00:05]} Kf8 {[%emt 0:02:51]} 40. Qd6+ {[%emt 0:02:27]} Kf7 {[%emt 0:00:02]} 41. Qd5+ {[%emt 0:00:01]} Kf8 {[%emt 0:00:01]} 42. Qd6+ {[%emt 0:00:01]} Kf7 43. Qd5+ {[%emt 0:00:03]} Kf8 1/2-1/2

[Event "Biel Master Tournament 2019"]
[Site "Biel"]
[Date "2019.07.23"]
[Round "2.14"]
[White "Haimovich, Tal"]
[Black "Antipov, Mikhail Al."]
[Result "0-1"]
[ECO "D94"]
[WhiteElo "2379"]
[BlackElo "2582"]
[Annotator "ChessBase"]
[PlyCount "70"]
[EventDate "2019.07.20"]
[EventType "swiss"]
[EventCountry "SUI"]
[SourceTitle "playchess.com"]
[Source "ChessBase"]
[SourceQuality "1"]
[TimeControl "40/5400+30:1800+30"]

1. d4 {[%emt 0:00:00]} Nf6 {[%emt 0:00:44]} 2. c4 {[%emt 0:00:07]} g6 {[%emt 0:00:06]} 3. Nc3 {[%emt 0:00:07]} d5 {[%emt 0:00:06]} 4. cxd5 {[%emt 0:05:53]} Nxd5 {[%emt 0:00:06]} 5. Nf3 {[%emt 0:00:19]} Bg7 {[%emt 0:00:10]} 6. e3 {[%emt 0:00:19]} O-O {[%emt 0:05:28]} 7. Bd2 {[%emt 0:05:22]} c5 {[%emt 0:05:29]} 8. Qb3 {[%emt 0:07:17]} Nb4 {[%emt 0:16:18]} 9. a3 {[%emt 0:16:09]} Be6 {[%emt 0:01:04]} 10. Qd1 {[%emt 0:02:02]} N4a6 {[%emt 0:20:53]} 11. Nb5 {[%emt 0:06:49]} Qb6 {[%emt 0:03:43]} 12. b4 {[%emt 0:08:17]} cxd4 {[%emt 0:00:59]} 13. Nfxd4 {[%emt 0:04:20]} Bd7 {[%emt 0:10:14]} 14. a4 {[%emt 0:03:50]} Bxb5 {[%emt 0:04:02]} 15. axb5 {[%emt 0:09:36]} Bxd4 {[%emt 0:00:21]} 16. exd4 {[%emt 0:00:16]} Nc7 {[%emt 0:00:05]} 17. Be3 {[%emt 0:00:16]} Nxb5 {[%emt 0:04:33]} 18. d5 {[%emt 0:05:34]} Qd6 {[%emt 0:00:01]} 19. Qb3 {[%emt 0:03:45]} Nc7 {[%emt 0:00:05]} 20. Rd1 {[%emt 0:01:42]} Nba6 {[%emt 0:01:05]} 21. Rd4 {[%emt 0:02:46]} Rfd8 {[%emt 0:01:06]} 22. h4 {[%emt 0:04:14]} Nxd5 {[%emt 0:02:49]} 23. Bxa6 {[%emt 0:00:41]} bxa6 {[%emt 0:00:48]} 24. h5 {[%emt 0:01:23]} e5 {[%emt 0:01:52]} 25. Rd2 {[%emt 0:02:04]} Qxb4 {[%emt 0:07:11]} 26. Qxb4 {[%emt 0:00:08]} Nxb4 {[%emt 0:00:02]} 27. hxg6 {[%emt 0:00:05]} fxg6 {[%emt 0:00:04]} 28. Ke2 {[%emt 0:01:31]} Nd5 {[%emt 0:00:24]} 29. Rc1 {[%emt 0:02:28]} Kf7 {[%emt 0:06:51]} 30. Bg5 {[%emt 0:01:05]} Rd7 {[%emt 0:01:30]} 31. Rc5 {[%emt 0:02:01]} Ke6 {[%emt 0:00:14]} 32. Ra2 {[%emt 0:02:50]} Rd6 {[%emt 0:00:13]} 33. Kf3 {[%emt 0:01:33]} Rf8+ {[%emt 0:00:46]} 34. Ke4 {[%emt 0:00:50]} Rf5 {[%emt 0:00:38]} 35. Bc1 {[%emt 0:01:02]} Nf6+ {[%emt 0:00:05] Kd4} 0-1

[Event "Biel Master Tournament 2019"]
[Site "Biel"]
[Date "2019.07.23"]
[Round "2.15"]
[White "Lalith Babu M R"]
[Black "Karavade, Eesha"]
[Result "1/2-1/2"]
[ECO "A13"]
[WhiteElo "2580"]
[BlackElo "2355"]
[Annotator "ChessBase"]
[PlyCount "74"]
[EventDate "2019.07.20"]
[EventType "swiss"]
[EventCountry "SUI"]
[TimeControl "40/5400+30:1800+30"]

1. c4 {[%emt 0:00:00]} Nf6 {[%emt 0:01:13]} 2. Nf3 {[%emt 0:00:00]} e6 {[%emt 0:00:39]} 3. g3 {[%emt 0:00:00]} d5 {[%emt 0:00:15]} 4. Bg2 {[%emt 0:00:01]} dxc4 {[%emt 0:03:13]} 5. O-O {[%emt 0:00:07]} Nbd7 {[%emt 0:02:09]} 6. Qc2 {[%emt 0:00:29]} a6 {[%emt 0:05:28]} 7. a4 {[%emt 0:01:44]} Rb8 {[%emt 0:02:13]} 8. Qxc4 {[%emt 0:00:39]} b5 {[%emt 0:09:05]} 9. Qc2 {[%emt 0:00:07]} Bb7 {[%emt 0:03:24]} 10. d3 {[%emt 0:00:18]} Be7 {[%emt 0:01:13]} 11. Bd2 {[%emt 0:00:38]} c5 {[%emt 0:04:26]} 12. axb5 {[%emt 0:10:22]} axb5 {[%emt 0:00:30]} 13. Nc3 {[%emt 0:00:04]} Qb6 {[%emt 0:03:19]} 14. Bf4 {[%emt 0:06:49]} Rc8 {[%emt 0:01:06]} 15. Qb3 {[%emt 0:01:00]} Bc6 {[%emt 0:01:15]} 16. Nd2 {[%emt 0:01:01]} Bxg2 {[%emt 0:02:19]} 17. Kxg2 {[%emt 0:00:04]} Qc6+ {[%emt 0:00:08]} 18. e4 {[%emt 0:01:14]} e5 {[%emt 0:11:48]} 19. Bg5 {[%emt 0:02:18]} c4 {[%emt 0:01:31]} 20. Qxb5 {[%emt 0:11:50]} Qxb5 {[%emt 0:01:42]} 21. Nxb5 {[%emt 0:00:03]} cxd3 {[%emt 0:00:08]} 22. Ra7 {[%emt 0:00:09]} Bc5 {[%emt 0:02:25]} 23. Bxf6 {[%emt 0:08:50]} Nxf6 {[%emt 0:01:30]} 24. Rc1 {[%emt 0:00:46]} O-O {[%emt 0:01:14]} 25. Rb7 {[%emt 0:00:03]} h6 {[%emt 0:03:09]} 26. Rc4 {[%emt 0:06:27]} Rfd8 {[%emt 0:05:33]} 27. h3 {[%emt 0:03:59]} Bf8 {[%emt 0:02:31]} 28. Rxc8 {[%emt 0:07:41]} Rxc8 {[%emt 0:00:03]} 29. Nc3 {[%emt 0:00:11]} Bc5 {[%emt 0:05:15]} 30. Kf3 {[%emt 0:07:29]} Bd4 {[%emt 0:05:07]} 31. Rb3 {[%emt 0:00:40]} Nd7 {[%emt 0:01:05]} 32. Na4 {[%emt 0:11:15]} Ra8 {[%emt 0:04:11]} 33. Rb4 {[%emt 0:01:10]} Nf8 {[%emt 0:02:49]} 34. h4 {[%emt 0:04:24]} h5 {[%emt 0:02:44]} 35. Nb6 {[%emt 0:05:01]} Rb8 {[%emt 0:00:27]} 36. Nd5 {[%emt 0:00:43]} Rxb4 {[%emt 0:00:09]} 37. Nxb4 {[%emt 0:00:03]} Bxb2 {[%emt 0:00:06]} 1/2-1/2

[Event "Biel Master Tournament 2019"]
[Site "Biel"]
[Date "2019.07.23"]
[Round "2.16"]
[White "Sachdev, Tania"]
[Black "Moussard, Jules"]
[Result "0-1"]
[ECO "A87"]
[WhiteElo "2350"]
[BlackElo "2576"]
[Annotator "ChessBase"]
[PlyCount "50"]
[EventDate "2019.07.20"]
[EventType "swiss"]
[EventCountry "SUI"]
[SourceTitle "playchess.com"]
[Source "ChessBase"]
[SourceQuality "1"]
[TimeControl "40/5400+30:1800+30"]

1. d4 {[%emt 0:00:00]} f5 {[%emt 0:08:11]} 2. g3 {[%emt 0:00:00]} Nf6 {[%emt 0:00:26]} 3. Bg2 {[%emt 0:00:00]} g6 {[%emt 0:00:08]} 4. c4 {[%emt 0:00:39]} Bg7 {[%emt 0:00:24]} 5. Nf3 {[%emt 0:00:13]} O-O {[%emt 0:00:09]} 6. O-O {[%emt 0:00:52]} d6 {[%emt 0:00:04]} 7. b3 {[%emt 0:00:15]} e5 {[%emt 0:17:28]} 8. dxe5 {[%emt 0:28:57]} dxe5 {[%emt 0:02:45]} 9. Bb2 {[%emt 0:02:12]} e4 {[%emt 0:01:20]} 10. Ng5 {[%emt 0:02:29]} Qe7 {[%emt 0:02:22]} 11. Nc3 {[%emt 0:04:41]} Rd8 {[%emt 0:03:57]} 12. Qc1 {[%emt 0:02:57]} Nc6 {[%emt 0:03:41]} 13. Nh3 {[%emt 0:03:31]} Nd4 {[%emt 0:02:57]} 14. Rd1 {[%emt 0:18:23]} Be6 {[%emt 0:07:38]} 15. Nf4 {[%emt 0:04:27]} c6 {[%emt 0:01:08]} 16. Ba3 {[%emt 0:08:56]} Qf7 {[%emt 0:04:04]} 17. Bc5 {[%emt 0:03:33]} Ne8 {[%emt 0:01:43]} 18. f3 {[%emt 0:09:21]} g5 {[%emt 0:07:22]} 19. Nh3 {[%emt 0:04:51]} h6 {[%emt 0:00:24]} 20. Nf2 {[%emt 0:02:30]} e3 {[%emt 0:03:35]} 21. Nd3 {[%emt 0:00:21]} f4 {[%emt 0:00:19]} 22. Ba3 {[%emt 0:00:38]} Bf5 {[%emt 0:01:52]} 23. Bf1 {[%emt 0:00:33]} Qg6 {[%emt 0:07:06]} 24. Kg2 {[%emt 0:01:05]} Nxf3 {[%emt 0:01:03]} 25. exf3 {[%emt 0:00:08]} Bxd3 {[%emt 0:00:07]} 0-1

[Event "Biel Master Tournament 2019"]
[Site "Biel"]
[Date "2019.07.23"]
[Round "2.17"]
[White "Brkic, Ante"]
[Black "Loeffler, Markus"]
[Result "1-0"]
[ECO "B51"]
[WhiteElo "2573"]
[BlackElo "2339"]
[Annotator "HL"]
[PlyCount "87"]
[EventDate "2019.07.20"]
[EventType "swiss"]
[EventCountry "SUI"]
[TimeControl "40/5400+30:1800+30"]

1. e4 {[%emt 0:07:11]} c5 {[%emt 0:06:46]} 2. Nf3 {[%emt 0:00:00]} d6 {[%emt 0:00:04]} 3. Bb5+ {[%emt 0:00:00]} Nd7 {[%emt 0:00:13]} 4. a4 {[%emt 0:00:00]} a6 {[%emt 0:01:07]} 5. Be2 {[%emt 0:00:00]} Ngf6 {[%emt 0:02:27]} 6. Nc3 {[%emt 0:00:00]} e5 {[%emt 0:06:30]} 7. Bc4 {[%emt 0:00:00]} Be7 {[%emt 0:15:39]} 8. d3 {[%emt 0:00:00]} O-O {[%emt 0:03:20]} 9. O-O {[%emt 0:05:58]} b6 10. Nh4 {[%emt 0:07:57]} g6 {[%emt 0:22:16]} 11. Bh6 {[%emt 0:23:14]} Re8 12. f4 {[%emt 0:00:00]} exf4 13. Bxf4 {[%emt 0:17:46]} Ne5 {[%emt 0:31:07]} 14. Bxe5 {[%emt 0:03:07]} dxe5 {[%emt 0:00:00]} 15. Nf3 {[%emt 0:00:10]} Bf8 {[%emt 0:14:08]} 16. Ng5 {[%emt 0:00:29]} Ra7 {[%emt 0:02:52]} 17. Qf3 {[%emt 0:09:40]} Kg7 {[%emt 0:00:00]} 18. Rf2 {[%emt 0:15:44]} h6 19. Raf1 {[%emt 0:05:25]} hxg5 {[%emt 0:00:00]} 20. Qxf6+ Qxf6 21. Rxf6 Be6 22. h3 Bd6 23. Kh2 Ree7 24. Kg3 Bc7 25. Bxe6 fxe6 26. Rf8 Rd7 27. Re8 Rf7 28. Rxf7+ Kxf7 29. Rc8 Ke7 30. Rh8 Kf6 31. Rh7 Bb8 32. Rxa7 Bxa7 33. Kg4 Bb8 34. Nb1 b5 35. axb5 axb5 36. Na3 b4 37. Nc4 Bc7 38. Nd2 Ba5 39. Nf3 b3 40. c3 c4 41. dxc4 Bb6 42. Nd2 Be3 43. Nxb3 Ke7 {[%emt 0:21:17]} 44. Kf3 {[%emt 0:37:07]} 1-0

[Event "Biel Master Tournament 2019"]
[Site "Biel"]
[Date "2019.07.23"]
[Round "2.18"]
[White "Akash, Ganesan"]
[Black "Santos Ruiz, Miguel"]
[Result "0-1"]
[ECO "B90"]
[WhiteElo "2394"]
[BlackElo "2567"]
[Annotator "ChessBase"]
[PlyCount "100"]
[EventDate "2019.07.20"]
[EventType "swiss"]
[EventCountry "SUI"]
[SourceTitle "playchess.com"]
[Source "ChessBase"]
[SourceQuality "1"]
[TimeControl "40/5400+30:1800+30"]

1. e4 {[%emt 0:00:00]} c5 {[%emt 0:01:11]} 2. Nf3 {[%emt 0:00:00]} d6 {[%emt 0:00:07]} 3. d4 {[%emt 0:00:02]} cxd4 {[%emt 0:00:06]} 4. Nxd4 {[%emt 0:00:06]} Nf6 {[%emt 0:00:03]} 5. Nc3 {[%emt 0:00:09]} a6 {[%emt 0:00:05]} 6. h3 {[%emt 0:00:21]} b5 {[%emt 0:00:05]} 7. Nd5 {[%emt 0:01:44]} e6 {[%emt 0:09:43]} 8. Nxf6+ {[%emt 0:00:18]} Qxf6 {[%emt 0:00:03]} 9. g3 {[%emt 0:01:33]} Bb7 {[%emt 0:09:06]} 10. Bg2 {[%emt 0:00:17]} Qd8 {[%emt 0:00:31]} 11. O-O {[%emt 0:03:36]} Be7 {[%emt 0:00:50]} 12. a4 {[%emt 0:00:47]} bxa4 {[%emt 0:02:33]} 13. Rxa4 {[%emt 0:00:59]} O-O {[%emt 0:03:30]} 14. Qe2 {[%emt 0:07:31]} Nd7 {[%emt 0:19:02]} 15. Nb3 {[%emt 0:04:16]} a5 {[%emt 0:01:41]} 16. Rd1 {[%emt 0:12:03]} Qc7 {[%emt 0:08:29]} 17. Qc4 {[%emt 0:09:41]} Rfc8 {[%emt 0:18:03]} 18. Qxc7 {[%emt 0:03:51]} Rxc7 {[%emt 0:00:03]} 19. Bd2 {[%emt 0:14:18]} Rxc2 {[%emt 0:05:32]} 20. Bc3 {[%emt 0:00:31]} Nc5 {[%emt 0:00:24]} 21. Nxc5 {[%emt 0:02:08]} dxc5 {[%emt 0:00:04]} 22. e5 {[%emt 0:10:35]} Bxg2 {[%emt 0:00:09]} 23. Kxg2 {[%emt 0:00:21]} Kf8 {[%emt 0:08:54]} 24. Rd7 {[%emt 0:02:44]} Rc1 {[%emt 0:01:51]} 25. Rb7 {[%emt 0:05:06]} Ke8 {[%emt 0:00:34]} 26. g4 {[%emt 0:05:13]} Rd1 {[%emt 0:02:24]} 27. Rxa5 {[%emt 0:02:10]} Rxa5 {[%emt 0:00:10]} 28. Bxa5 {[%emt 0:00:06]} Bd8 {[%emt 0:02:38]} 29. Rb8 {[%emt 0:01:56]} Ke7 {[%emt 0:00:09]} 30. Bc3 {[%emt 0:01:01]} g6 {[%emt 0:01:27]} 31. Rb5 {[%emt 0:04:26]} Rd5 {[%emt 0:00:08]} 32. Kf3 {[%emt 0:00:37]} Bc7 {[%emt 0:00:40]} 33. Rb7 {[%emt 0:02:16]} Kd8 {[%emt 0:00:11]} 34. Ra7 {[%emt 0:04:19]} Kc8 {[%emt 0:00:06]} 35. Ke4 {[%emt 0:00:31]} Rd1 {[%emt 0:02:57]} 36. Ra8+ {[%emt 0:00:15]} Bb8 {[%emt 0:00:15]} 37. Ra5 {[%emt 0:00:38]} Rh1 {[%emt 0:00:24]} 38. Rxc5+ {[%emt 0:00:48]} Kd7 {[%emt 0:00:03]} 39. Rb5 {[%emt 0:01:31]} Bc7 {[%emt 0:00:24]} 40. Bd2 {[%emt 0:00:41]} Rxh3 {[%emt 0:00:18]} 41. Be3 {[%emt 0:12:09]} Rh4 {[%emt 0:03:24]} 42. f3 {[%emt 0:01:24]} h5 {[%emt 0:00:12]} 43. Bg5 {[%emt 0:02:43]} Rh1 {[%emt 0:00:22]} 44. gxh5 {[%emt 0:01:07]} Re1+ {[%emt 0:02:55]} 45. Be3 {[%emt 0:04:21]} gxh5 {[%emt 0:03:02]} 46. Kd3 {[%emt 0:05:45]} h4 {[%emt 0:00:12]} 47. Rb4 {[%emt 0:00:26]} Rh1 {[%emt 0:04:52]} 48. Rd4+ {[%emt 0:02:32]} Ke8 {[%emt 0:00:40]} 49. f4 {[%emt 0:03:11]} h3 {[%emt 0:00:55]} 50. Ke4 {[%emt 0:00:35]} Re1 {[%emt 0:00:34]} 0-1